fUSD/lending_fUSD_20240121
["ID","MTS","AMOUNT","RATE_DAILY","PERIOD"]
[312412440,1705863078634,-768.13,0.00041643,31]
[312412441,1705863078644,-500.0,0.00041643,31]
[312412442,1705863078654,-500.0,0.00041643,31]
[312412443,1705863078665,-890.92,0.00041643,31]
[312412444,1705863078677,-1310.81,0.00041643,31]
[312412445,1705863078687,-500.0,0.00041643,8]
[312412446,1705863078697,-563.09,0.00041643,31]
[312412447,1705863078708,-500.0,0.00041643,31]
[312412448,1705863078717,-1323.52,0.00041643,31]
[312412449,1705863078726,-679.03,0.00041643,31]
[312412450,1705863078736,-500.0,0.00041643,31]
[312412451,1705863078747,-500.0,0.00041643,31]
[312412452,1705863078756,-500.0,0.00041643,31]
[312412453,1705863078765,-701.31,0.00041643,31]
[312412454,1705863078775,-1411.28,0.00041643,31]
[312412455,1705863078785,-1476.08,0.00041643,31]
[312412456,1705863078795,-952.35,0.00041643,31]
[312412457,1705863078804,-836.49,0.00041643,31]
[312412458,1705863078814,-1119.54,0.00041643,31]
[312412459,1705863078824,-500.0,0.00041643,31]
[312412460,1705863078833,-2100.19,0.00041643,31]
[312412461,1705863078843,-1699.55,0.00041643,31]
[312412462,1705863078853,-1129.23,0.00041643,31]
[312412463,1705863078863,-500.0,0.00041643,31]
[312412464,1705863078873,-978.64,0.00041643,31]
[312412465,1705863078882,-500.0,0.00041643,31]
[312412466,1705863078892,-518.29,0.00041643,7]
[312412467,1705863078901,-500.0,0.00041643,31]
[312412468,1705863078911,-500.0,0.00041643,31]
[312412469,1705863078921,-500.0,0.00041643,31]
[312412470,1705863078931,-1088.8,0.00041643,31]
[312412471,1705863078941,-500.0,0.00041643,31]
[312412472,1705863078951,-1373.63,0.00041643,31]
[312412473,1705863078960,-500.0,0.00041643,31]
[312412474,1705863078970,-500.0,0.00041643,31]
[312412475,1705863078980,-509.4,0.00041643,30]
[312412476,1705863078990,-1096.84,0.00041643,31]
[312412477,1705863078999,-784.37,0.00041643,31]
[312412478,1705863079009,-500.0,0.00041643,31]
[312412479,1705863079019,-512.0211263,0.00041643,31]
[312412480,1705863079030,-786.57,0.00041643,31]
[312412481,1705863079040,-500.0,0.00041643,31]
[312412482,1705863079050,-611.25,0.00041643,31]
[312412483,1705863079060,-1153.04,0.00041643,31]
[312412484,1705863079070,-500.0,0.00041643,31]
[312412485,1705863079079,-500.0,0.00041643,31]
[312412486,1705863079090,-1019.37,0.00041643,31]
[312412487,1705863079100,-500.0,0.00041643,7]
[312412488,1705863079110,-1231.51,0.00041643,31]
[312412489,1705863079119,-500.0,0.00041643,31]
[312412490,1705863079129,-500.0,0.00041643,31]
[312412491,1705863079139,-500.0,0.00041643,31]
[312412492,1705863079149,-500.0,0.00041643,31]
[312412493,1705863079159,-1374.73,0.00041643,31]
[312412494,1705863079169,-500.0,0.00041643,31]
[312412495,1705863079179,-1208.34,0.00041643,31]
[312412496,1705863079190,-1371.39,0.00041643,31]
[312412497,1705863079200,-820.18,0.00041643,31]
[312412498,1705863079210,-557.27876032,0.00041643,31]
[312412499,1705863079220,-1442.91,0.00041643,31]
[312412500,1705863079230,-706.05,0.00041643,31]
[312412501,1705863079240,-500.0,0.00041643,31]
[312412502,1705863079250,-500.0,0.00041643,31]
[312412503,1705863079260,-669.79,0.00041643,31]
[312412504,1705863079271,-875.23,0.00041643,31]
[312412505,1705863079280,-500.0,0.00041643,31]
[312412506,1705863079291,-500.0,0.00041643,31]
[312412507,1705863079301,-2613.26,0.00041643,7]
[312412508,1705863079311,-2071.44,0.00041643,31]
[312412509,1705863079321,-901.63,0.00041643,31]
[312412510,1705863079331,-500.0,0.00041643,31]
[312412511,1705863079341,-500.0,0.00041643,31]
[312412512,1705863079351,-500.0,0.00041643,31]
[312412513,1705863079361,-2191.06,0.00041643,7]
[312412514,1705863079371,-500.0,0.00041643,31]
[312412515,1705863079382,-404.88013554,0.00041643,31]
[312412516,1705863079393,-500.0,0.00041643,31]
[312412517,1705863079403,-500.0,0.00041643,31]
[312412518,1705863079413,-500.0,0.00041643,31]
[312412519,1705863079423,-500.0,0.00041643,31]
[312412520,1705863079433,-500.0,0.00041643,31]
[312412521,1705863079443,-641.54,0.00041643,31]
[312412522,1705863079452,-500.0,0.00041643,31]
[312412523,1705863079462,-1346.51,0.00041643,31]
[312412524,1705863079472,-1341.6,0.00041643,2]
[312412525,1705863079481,-500.0,0.00041643,31]
[312412526,1705863079491,-500.0,0.00041643,31]
[312412527,1705863079501,-500.0,0.00041643,31]
[312412528,1705863079511,-500.0,0.00041643,31]
[312412529,1705863079520,-500.0,0.00041643,31]
[312412530,1705863079530,-500.0,0.00041643,31]
[312412531,1705863079540,-504.02,0.00041643,31]
[312412532,1705863079550,-504.43,0.00041643,31]
[312412533,1705863079559,-500.0,0.00041643,31]
[312412534,1705863079569,-588.19,0.00041643,31]
[312412535,1705863079579,-787.71,0.00041643,31]
[312412536,1705863079589,-500.0,0.00041643,31]
[312412537,1705863079598,-500.0,0.00041643,31]
[312412538,1705863079608,-659.24,0.00041643,31]
[312412539,1705863079618,-500.0,0.00041643,31]
[312412540,1705863079628,-500.0,0.00041643,31]
[312412541,1705863079637,-500.0,0.00041643,31]
[312412542,1705863079649,-646.69,0.00041643,31]
[312412543,1705863079660,-653.73,0.00041643,31]
[312412544,1705863079671,-500.0,0.00041643,31]
[312412545,1705863079682,-1246.47,0.00041643,31]
[312412546,1705863079693,-970.62,0.00041643,31]
[312412547,1705863079703,-1282.6,0.00041643,31]
[312412548,1705863079714,-500.0,0.00041643,31]
[312412549,1705863079724,-500.0,0.00041643,31]
[312412550,1705863079735,-1439.07,0.00041643,31]
[312412551,1705863079746,-500.0,0.00041643,31]
[312412552,1705863079756,-500.0,0.00041643,31]
[312412553,1705863079766,-884.92,0.00041643,31]
[312412554,1705863079776,-500.0,0.00041643,31]
[312412555,1705863079786,-500.0,0.00041643,31]
[312412556,1705863079796,-500.0,0.00041643,31]
[312412557,1705863079805,-601.71,0.00041643,31]
[312412558,1705863079815,-500.0,0.00041643,31]
[312412559,1705863079826,-631.29,0.00041643,31]
[312412560,1705863079837,-500.0,0.00041643,31]
[312412561,1705863079847,-658.35,0.00041643,31]
[312412562,1705863079858,-1363.05,0.00041643,31]
[312412563,1705863079867,-500.0,0.00041643,31]
[312412564,1705863079878,-500.0,0.00041643,31]
[312412565,1705863079888,-500.0,0.00041643,31]
[312412566,1705863079898,-1376.75,0.00041643,31]
[312412567,1705863079909,-734.65,0.00041643,31]
[312412568,1705863079919,-629.5,0.00041643,31]
[312412569,1705863079930,-878.27,0.00041643,31]
[312412570,1705863079940,-1485.3,0.00041643,31]
[312412571,1705863079950,-500.0,0.00041643,31]
[312412572,1705863079959,-500.0,0.00041643,31]
[312412573,1705863079969,-500.0,0.00041643,31]
[312412574,1705863079979,-500.0,0.00041643,31]
[312412575,1705863079988,-500.0,0.00041643,31]
[312412576,1705863079998,-500.0,0.00041643,31]
[312412577,1705863080008,-269.58,0.00041643,31]
[312412578,1705863080018,-1460.98,0.00041643,31]
[312412579,1705863080029,-795.53,0.00041643,31]
[312412580,1705863080039,-500.0,0.00041643,31]
[312412581,1705863080049,-228.6,0.00041643,31]
[312412582,1705863080059,-500.0,0.00041643,31]
[312412583,1705863080069,-582.97,0.00041643,31]
[312412584,1705863080080,-500.0,0.00041643,31]
[312412585,1705863080090,-750.82,0.00041643,31]
[312412586,1705863080100,-1823.96,0.00041643,31]
[312412587,1705863080110,-500.0,0.00041643,31]
[312412588,1705863080120,-500.0,0.00041643,31]
[312412589,1705863080130,-1800.49,0.00041643,31]
[312412590,1705863080141,-500.0,0.00041643,31]
[312412591,1705863080151,-513.68318343,0.00041643,31]
[312412592,1705863080161,-752.24,0.00041643,31]
[312412593,1705863080172,-500.0,0.00041643,31]
[312412594,1705863080182,-500.0,0.00041643,31]
[312412595,1705863080193,-500.0,0.00041643,31]
[312412596,1705863080204,-500.0,0.00041643,31]
[312412597,1705863080215,-1200.05,0.00041643,31]
[312412598,1705863080225,-517.10751651,0.00041643,31]
[312412599,1705863080235,-500.0,0.00041643,31]
[312412600,1705863080246,-500.0,0.00041643,31]
[312412601,1705863080565,-1143.39,0.00041643,31]
[312412602,1705863080586,-798.25,0.00041643,31]
[312412603,1705863080596,-795.6,0.00041643,31]
[312412604,1705863080606,-502.98668634,0.00041643,31]
[312412605,1705863080616,-155.65385275,0.00041643,31]
[312412606,1705863080625,-500.0,0.00041643,31]
[312412607,1705863080635,-500.0,0.00041643,31]
[312412608,1705863080646,-554.82169838,0.00041643,31]
[312412609,1705863080656,-500.0,0.00041643,31]
[312412610,1705863080666,-834.82,0.00041643,31]
[312412611,1705863080678,-500.0,0.00041643,31]
[312412612,1705863080688,-687.25,0.00041643,31]
[312412613,1705863080698,-500.0,0.00041643,31]
[312412614,1705863080709,-500.0,0.00041643,31]
[312412615,1705863080721,-625.95,0.00041643,31]
[312412616,1705863080732,-500.0,0.00041643,31]
[312412617,1705863080742,-500.0,0.00041643,31]
[312412618,1705863080754,-5545.7,0.00041643,31]
[312412619,1705863080764,-654.82,0.00041643,31]
[312412620,1705863080773,-500.0,0.00041643,31]
[312412621,1705863080783,-500.0,0.00041643,31]
[312412622,1705863080793,-502.19915524,0.00041643,31]
[312412623,1705863080803,-627.52,0.00041643,31]
[312412624,1705863080813,-507.40001072,0.00041643,31]
[312412625,1705863080823,-500.0,0.00041643,31]
[312412626,1705863080833,-500.0,0.00041643,31]
[312412627,1705863080844,-730.39,0.00041643,31]
[312412628,1705863080854,-500.0,0.00041643,31]
[312412629,1705863080863,-500.0,0.00041643,31]
[312412630,1705863080873,-3338.13,0.00041643,31]
[312412631,1705863080883,-500.0,0.00041643,31]
[312412632,1705863080893,-500.0,0.00041643,31]
[312412633,1705863080904,-500.0,0.00041643,31]
[312412634,1705863080913,-545.27,0.00041643,31]
[312412635,1705863080924,-764.44,0.00041643,31]
[312412636,1705863080934,-500.0,0.00041643,31]
[312412637,1705863080944,-1998.81,0.00041643,31]
[312412638,1705863080955,-1296.18,0.00041643,31]
[312412639,1705863080965,-500.0,0.00041643,31]
[312412640,1705863080975,-17260.95,0.00041643,31]
[312412641,1705863080986,-1596.09,0.00041643,31]
[312412642,1705863080995,-500.0,0.00041643,31]
[312412643,1705863081005,-708.09,0.00041643,31]
[312412644,1705863081015,-500.0,0.00041643,31]
[312412645,1705863081024,-898.19,0.00041643,31]
[312412646,1705863081034,-500.0,0.00041643,31]
[312412647,1705863081045,-570.27,0.00041643,31]
[312412648,1705863081055,-5449.29,0.00041643,31]
[312412649,1705863081064,-2144.35,0.00041643,31]
[312412650,1705863081074,-500.0,0.00041643,31]
[312412651,1705863081084,-500.0,0.00041643,31]
[312412652,1705863081094,-602.09,0.00041643,31]
[312412653,1705863081104,-500.0,0.00041643,31]
[312412654,1705863081114,-501.79,0.00041643,31]
[312412655,1705863081124,-500.0,0.00041643,31]
[312412656,1705863081134,-500.0,0.00041643,31]
[312412657,1705863081144,-754.18,0.00041643,31]
[312412658,1705863081154,-2566.96,0.00041643,31]
[312412659,1705863081165,-1568.48,0.00041643,31]
[312412660,1705863081175,-1393.43,0.00041643,31]
[312412661,1705863081185,-14027.91,0.00041643,31]
[312412662,1705863081195,-500.0,0.00041643,31]
[312412663,1705863081206,-927.78,0.00041643,31]
[312412664,1705863081216,-500.0,0.00041643,31]
[312412665,1705863081226,-500.0,0.00041643,31]
[312412666,1705863081236,-500.0,0.00041643,31]
[312412667,1705863081246,-500.0,0.00041643,31]
[312412668,1705863081257,-330.3340515,0.00041643,31]
[312412669,1705863081267,-1492.21,0.00041643,31]
[312412670,1705863081277,-872.52,0.00041643,31]
[312412671,1705863081287,-20533.6,0.00041643,31]
[312412672,1705863081297,-866.78,0.00041643,31]
[312412673,1705863081307,-1000.0,0.00041643,31]
[312412674,1705863081317,-2714.75,0.00041643,31]
[312412675,1705863081327,-500.0,0.00041643,31]
[312412676,1705863081338,-2856.96,0.00041643,31]
[312412677,1705863081348,-500.0,0.00041643,31]
[312412678,1705863081358,-500.0,0.00041643,31]
[312412679,1705863081369,-188.67785387,0.00041643,31]
[312412680,1705863081379,-500.0,0.00041643,31]
[312412681,1705863081390,-500.0,0.00041643,31]
[312412682,1705863081400,-500.0,0.00041643,31]
[312412683,1705863081410,-500.0,0.00041643,31]
[312412684,1705863081420,-500.0,0.00041643,31]
[312412685,1705863081430,-618.09,0.00041643,31]
[312412686,1705863081441,-585.59,0.00041643,31]
[312412687,1705863081451,-838.89,0.00041643,31]
[312412688,1705863081461,-38187.45,0.00041643,31]
[312412689,1705863081471,-500.0,0.00041643,31]
[312412690,1705863081481,-1815.38,0.00041643,31]
[312412691,1705863081491,-500.0,0.00041643,31]
[312412692,1705863081501,-3481.81,0.00041643,31]
[312412693,1705863081512,-506.98,0.00041643,31]
[312412694,1705863081522,-296.22269753,0.00041643,31]
[312412695,1705863081533,-5257.49,0.00041643,31]
[312412696,1705863081543,-500.0,0.00041643,31]
[312412697,1705863081552,-500.0,0.00041643,31]
[312412698,1705863081563,-500.0,0.00041643,31]
[312412699,1705863081573,-500.0,0.00041643,31]
[312412700,1705863081583,-500.0,0.00041643,10]
[312412701,1705863081593,-522.8,0.00041643,31]
[312412702,1705863081602,-2462.22,0.00041643,31]
[312412703,1705863081612,-199.09543875,0.00041643,31]
[312412704,1705863081623,-500.0,0.00041643,31]
[312412705,1705863081633,-2726.66,0.00041643,31]
[312412706,1705863081644,-500.0,0.00041643,31]
[312412707,1705863081657,-500.0,0.00041643,31]
[312412708,1705863081668,-500.0,0.00041643,31]
[312412709,1705863081677,-500.0,0.00041643,31]
[312412710,1705863081687,-500.0,0.00041643,31]
[312412711,1705863081697,-9964.37,0.00041643,31]
[312412712,1705863081707,-4646.58,0.00041643,31]
[312412713,1705863081717,-1256.11,0.00041643,31]
[312412714,1705863081727,-569.32,0.00041643,31]
[312412715,1705863081737,-563.04,0.00041643,31]
[312412716,1705863081747,-1625.17,0.00041643,31]
[312412717,1705863081756,-1597.74,0.00041643,31]
[312412718,1705863081766,-500.0,0.00041643,31]
[312412719,1705863081775,-1521.04,0.00041643,31]
[312412720,1705863081785,-945.78,0.00041643,31]
[312412721,1705863081794,-544.69,0.00041643,31]
[312412722,1705863081803,-1325.95,0.00041643,31]
[312412723,1705863081812,-500.0,0.00041643,31]
[312412724,1705863081822,-722.86,0.00041643,31]
[312412725,1705863081831,-1638.27,0.00041643,31]
[312412726,1705863081841,-2479.49,0.00041643,31]
[312412727,1705863081851,-2862.9,0.00041643,31]
[312412728,1705863081860,-781.61,0.00041643,31]
[312412729,1705863081869,-1020.59,0.00041643,31]
[312412730,1705863081879,-500.0,0.00041643,31]
[312412731,1705863081888,-500.0,0.00041643,31]
[312412732,1705863081897,-13684.18,0.00041643,31]
[312412733,1705863081907,-500.0,0.00041643,31]
[312412734,1705863081916,-500.0,0.00041643,31]
[312412735,1705863081926,-688.84,0.00041643,31]
[312412736,1705863081935,-1661.63,0.00041643,31]
[312412737,1705863081944,-500.0,0.00041643,31]
[312412738,1705863081953,-4867.58,0.00041643,31]
[312412739,1705863081962,-2128.7,0.00041643,31]
[312412740,1705863081971,-2953.84,0.00041643,31]
[312412741,1705863081980,-500.0,0.00041643,31]
[312412742,1705863081990,-500.0,0.00041643,31]
[312412743,1705863081998,-500.0,0.00041643,31]
[312412744,1705863082008,-569.98126597,0.00041643,31]
[312412745,1705863082017,-500.0,0.00041643,31]
[312412746,1705863082026,-3193.31,0.00041643,31]
[312412747,1705863082036,-500.0,0.00041643,31]
[312412748,1705863082045,-687.4,0.00041643,31]
[312412749,1705863082054,-1215.74,0.00041643,31]
[312412750,1705863082063,-500.0,0.00041643,31]
[312412751,1705863082073,-3100.08,0.00041643,31]
[312412752,1705863082082,-500.0,0.00041643,31]
[312412753,1705863082091,-500.0,0.00041643,31]
[312412754,1705863082100,-500.0,0.00041643,31]
[312412755,1705863082110,-524.07027918,0.00041643,31]
[312412756,1705863082119,-1445.08,0.00041643,31]
[312412757,1705863082129,-500.0,0.00041643,31]
[312412758,1705863082138,-916.15,0.00041643,31]
[312412759,1705863082148,-4139.67,0.00041643,31]
[312412760,1705863082157,-598.34,0.00041643,31]
[312412761,1705863082167,-500.0,0.00041643,31]
[312412762,1705863082176,-500.0,0.00041643,31]
[312412763,1705863082185,-710.29,0.00041643,31]
[312412764,1705863082195,-500.0,0.00041643,31]
[312412765,1705863082204,-5676.64,0.00041643,31]
[312412766,1705863082214,-500.0,0.00041643,31]
[312412767,1705863082223,-500.0,0.00041643,31]
[312412768,1705863082233,-2001.23,0.00041643,31]
[312412769,1705863082243,-2149.06,0.00041643,31]
[312412770,1705863082253,-940.56,0.00041643,31]
[312412771,1705863082262,-500.0,0.00041643,31]
[312412772,1705863082271,-4833.56,0.00041643,31]
[312412773,1705863082281,-506.94,0.00041643,31]
[312412774,1705863082290,-970.56,0.00041643,31]
[312412775,1705863082299,-2423.36,0.00041643,31]
[312412776,1705863082310,-1219.52,0.00041643,31]
[312412777,1705863082320,-1862.24,0.00041643,31]
[312412778,1705863082330,-500.0,0.00041643,31]
[312412779,1705863082339,-500.0,0.00041643,31]
[312412780,1705863082349,-500.0,0.00041643,31]
[312412781,1705863082358,-1187.95,0.00041643,31]
[312412782,1705863082368,-500.0,0.00041643,31]
[312412783,1705863082377,-500.0,0.00041643,31]
[312412784,1705863082387,-500.0,0.00041643,31]
[312412785,1705863082396,-1829.93,0.00041643,31]
[312412786,1705863082406,-500.0,0.00041643,31]
[312412787,1705863082415,-14384.99,0.00041643,31]
[312412788,1705863082424,-578.39,0.00041643,31]
[312412789,1705863082434,-639.46,0.00041643,31]
[312412790,1705863082443,-1213.94,0.00041643,31]
[312412791,1705863082453,-642.18329081,0.00041643,31]
[312412792,1705863082462,-709.99,0.00041643,31]
[312412793,1705863082471,-300.0,0.00041643,31]
[312412794,1705863082481,-625.46,0.00041643,31]
[312412795,1705863082490,-3268.88,0.00041643,31]
[312412796,1705863082500,-648.75,0.00041643,31]
[312412797,1705863082509,-975.48,0.00041643,31]
[312412798,1705863082518,-755.56,0.00041643,31]
[312412799,1705863082527,-500.0,0.00041643,31]
[312412800,1705863082537,-503.45027096,0.00041643,31]
[312412801,1705863082546,-1678.3,0.00041643,31]
[312412802,1705863082555,-2329.16,0.00041643,31]
[312412803,1705863082565,-500.0,0.00041643,31]
[312412804,1705863082574,-558.66,0.00041643,31]
[312412805,1705863082584,-500.0,0.00041643,31]
[312412806,1705863082593,-1639.58,0.00041643,31]
[312412807,1705863082602,-1401.81,0.00041643,31]
[312412808,1705863082611,-500.0,0.00041643,31]
[312412809,1705863082621,-894.48,0.00041643,31]
[312412810,1705863082630,-687.4,0.00041643,31]
[312412811,1705863082639,-1615.83,0.00041643,31]
[312412812,1705863082649,-1087.01,0.00041643,31]
[312412813,1705863082659,-500.0,0.00041643,31]
[312412814,1705863082672,-1031.2,0.00041643,31]
[312412815,1705863082681,-531.01,0.00041643,31]
[312412816,1705863082690,-231.32306335,0.00041643,31]
[312412817,1705863082699,-2511.72,0.00041643,31]
[312412818,1705863082710,-1748.22,0.00041643,31]
[312412819,1705863082719,-4456.07,0.00041643,31]
[312412820,1705863082728,-500.0,0.00041643,31]
[312412821,1705863082737,-500.0,0.00041643,31]
[312412822,1705863082748,-500.0,0.00041643,31]
[312412823,1705863082758,-500.0,0.00041643,31]
[312412824,1705863082768,-1000.0,0.00041643,14]
[312412825,1705863082777,-3850.98,0.00041643,31]
[312412826,1705863082786,-579.06,0.00041643,31]
[312412827,1705863082795,-500.0,0.00041643,31]
[312412828,1705863082805,-3629.07,0.00041643,31]
[312412829,1705863082814,-3411.41,0.00041643,31]
[312412830,1705863082823,-500.0,0.00041643,31]
[312412831,1705863082834,-500.0,0.00041643,31]
[312412832,1705863082843,-726.07,0.00041643,31]
[312412833,1705863082852,-500.0,0.00041643,31]
[312412834,1705863082862,-5194.93,0.00041643,31]
[312412835,1705863082872,-450.89715303,0.00041643,31]
[312412836,1705863082881,-1150.49,0.00041643,31]
[312412837,1705863082979,-3377.74,0.00041643,31]
[312412838,1705863082989,-1943.47,0.00041643,31]
[312412839,1705863082998,-597.72273974,0.00041643,31]
[312412840,1705863083008,-1108.56,0.00041643,31]
[312412841,1705863083017,-500.0,0.00041643,31]
[312412842,1705863083027,-500.0,0.00041643,31]
[312412843,1705863083036,-500.0,0.00041643,31]
[312412844,1705863083046,-307.46310009,0.00041643,31]
[312412845,1705863083055,-620.5,0.00041643,31]
[312412846,1705863083065,-1379.23,0.00041643,31]
[312412847,1705863083074,-500.0,0.00041643,31]
[312412848,1705863083084,-965.9,0.00041643,31]
[312412849,1705863083094,-825.6,0.00041643,31]
[312412850,1705863083103,-519.12674508,0.00041643,31]
[312412851,1705863083113,-3791.82,0.00041643,31]
[312412852,1705863083122,-1532.88,0.00041643,31]
[312412853,1705863083132,-1797.81,0.00041643,31]
[312412854,1705863083142,-5971.46,0.00041643,31]
[312412855,1705863083151,-500.0,0.00041643,31]
[312412856,1705863083161,-500.0,0.00041643,31]
[312412857,1705863083170,-500.0,0.00041643,31]
[312412858,1705863083180,-500.0,0.00041643,7]
[312412859,1705863083190,-597.64,0.00041643,31]
[312412860,1705863083199,-500.0,0.00041643,31]
[312412861,1705863083208,-554.71,0.00041643,31]
[312412862,1705863083218,-500.0,0.00041643,31]
[312412863,1705863083228,-500.0,0.00041643,31]
[312412864,1705863083238,-843.24,0.00041643,31]
[312412865,1705863083248,-505.05,0.00041643,31]
[312412866,1705863083258,-1011.31,0.00041643,31]
[312412867,1705863083267,-500.0,0.00041643,31]
[312412868,1705863083277,-500.0,0.00041643,31]
[312412869,1705863083286,-500.0,0.00041643,31]
[312412870,1705863083295,-500.0,0.00041643,60]
[312412871,1705863083305,-1242.18,0.00041643,31]
[312412872,1705863083314,-506.11310423,0.00041643,31]
[312412873,1705863083323,-500.0,0.00041643,15]
[312412874,1705863083332,-31979.27,0.00041643,31]
[312412875,1705863083342,-1802.54,0.00041643,31]
[312412876,1705863083351,-500.0,0.00041643,31]
[312412877,1705863083360,-724.71,0.00041643,31]
[312412878,1705863083369,-1209.74,0.00041643,31]
[312412879,1705863083378,-500.0,0.00041643,31]
[312412880,1705863083388,-2046.63,0.00041643,31]
[312412881,1705863083397,-1903.42,0.00041643,31]
[312412882,1705863083406,-4903.09,0.00041643,31]
[312412883,1705863083415,-500.0,0.00041643,31]
[312412884,1705863083424,-500.0,0.00041643,31]
[312412885,1705863083434,-500.0,0.00041643,31]
[312412886,1705863083443,-500.0,0.00041643,31]
[312412887,1705863083452,-1146.65,0.00041643,31]
[312412888,1705863083462,-2442.87,0.00041643,31]
[312412889,1705863083472,-500.0,0.00041643,31]
[312412890,1705863083481,-500.0,0.00041643,31]
[312412891,1705863083490,-2526.05,0.00041643,31]
[312412892,1705863083499,-2162.48,0.00041643,31]
[312412893,1705863083509,-1626.96,0.00041643,31]
[312412894,1705863083518,-1000.0,0.00041643,2]
[312412895,1705863083528,-1812.71,0.00041643,31]
[312412896,1705863083537,-500.0,0.00041643,5]
[312412897,1705863083547,-500.0,0.00041643,31]
[312412898,1705863083556,-500.0,0.00041643,31]
[312412899,1705863083566,-509.47,0.00041643,31]
[312412900,1705863083575,-511.23227721,0.00041643,31]
[312412901,1705863083583,-807.78,0.00041643,31]
[312412902,1705863083593,-638.08,0.00041643,31]
[312412903,1705863083602,-4768.84,0.00041643,31]
[312412904,1705863083612,-500.0,0.00041643,31]
[312412905,1705863083621,-500.0,0.00041643,31]
[312412906,1705863083631,-500.0,0.00041643,31]
[312412907,1705863083640,-23111.4,0.00041643,31]
[312412908,1705863083649,-500.0,0.00041643,31]
[312412909,1705863083660,-500.0,0.00041643,31]
[312412910,1705863083669,-641.88,0.00041643,31]
[312412911,1705863083679,-2345.39,0.00041643,31]
[312412912,1705863083688,-500.0,0.00041643,31]
[312412913,1705863083698,-1543.52,0.00041643,31]
[312412914,1705863083707,-500.0,0.00041643,31]
[312412915,1705863083717,-2539.24,0.00041643,31]
[312412916,1705863083726,-500.0,0.00041643,31]
[312412917,1705863083735,-4085.26,0.00041643,31]
[312412918,1705863083745,-500.0,0.00041643,31]
[312412919,1705863083754,-500.0,0.00041643,2]
[312412920,1705863083763,-500.0,0.00041643,31]
[312412921,1705863083772,-1053.53,0.00041643,31]
[312412922,1705863083781,-294.98430882,0.00041643,31]
[312412923,1705863083791,-500.0,0.00041643,31]
[312412924,1705863083800,-1444.4,0.00041643,31]
[312412925,1705863083809,-435.5796953,0.00041643,31]
[312412926,1705863083818,-1203.58,0.00041643,31]
[312412927,1705863083828,-8334.75,0.00041643,31]
[312412928,1705863083836,-1170.03,0.00041643,31]
[312412929,1705863083845,-3868.82,0.00041643,31]
[312412930,1705863083854,-751.65,0.00041643,31]
[312412931,1705863083864,-1290.9,0.00041643,31]
[312412932,1705863083873,-2604.67,0.00041643,31]
[312412933,1705863083882,-500.0,0.00041643,31]
[312412934,1705863083891,-3891.13,0.00041643,31]
[312412935,1705863083900,-500.0,0.00041643,31]
[312412936,1705863083910,-879.17,0.00041643,31]
[312412937,1705863083918,-500.0,0.00041643,31]
[312412938,1705863083928,-702.2,0.00041643,31]
[312412939,1705863083937,-1512.38,0.00041643,31]